fUST/lending_fUST_20260213
["ID","MTS","AMOUNT","RATE_DAILY","PERIOD"]
[405279853,1770938949493,-500.0,0.00024773,2]
[405279854,1770938949517,-500.0,0.00024773,2]
[405279855,1770938949543,-500.0,0.00024773,2]
[405279856,1770938949570,-500.0,0.00024773,2]
[405279857,1770938949597,-500.0,0.00024773,2]
[405279858,1770938949622,-500.0,0.00024773,2]
[405279859,1770938949646,-282.69359739,0.00024773,2]
[405279860,1770938949672,-500.0,0.00024773,2]
[405279861,1770938949698,-500.0,0.00024773,2]
[405279862,1770938949724,-500.0,0.00024773,2]
[405279863,1770938949749,-500.0,0.00024773,2]
[405279864,1770938949774,-500.0,0.00024773,2]
[405279865,1770938949799,-500.0,0.00024773,2]
[405279866,1770938949825,-500.0,0.00024773,2]
[405279867,1770938949849,-451.38455687,0.00024773,2]
[405279868,1770938949872,-500.0,0.00024773,2]
[405279869,1770938949898,-500.0,0.00024773,2]
[405279870,1770938949924,-500.0,0.00024773,2]
[405279871,1770938949950,-500.0,0.00024773,2]
[405279872,1770938949978,-500.0,0.00024773,2]
[405279873,1770938950006,-500.0,0.00024773,2]
[405279874,1770938950033,-548.93447031,0.00024773,2]
[405279875,1770938950060,-500.0,0.00024773,2]
[405279876,1770938950085,-500.0,0.00024773,2]
[405279877,1770938950107,-500.0,0.00024773,2]
[405279878,1770938950132,-650.00000002,0.00024773,2]
[405279879,1770938950161,-500.0,0.00024773,2]
[405279880,1770938950188,-500.0,0.00024773,2]
[405279881,1770938950213,-500.0,0.00024773,2]
[405279882,1770938950238,-500.0,0.00024773,2]
[405279883,1770938950263,-500.0,0.00024773,2]
[405279884,1770938950290,-500.0,0.00024773,2]
[405279885,1770938950313,-500.0,0.00024773,2]
[405279886,1770938950336,-500.0,0.00024773,2]
[405279887,1770938950359,-500.0,0.00024773,2]
[405279888,1770938950384,-500.0,0.00024773,2]
[405279889,1770938950409,-500.0,0.00024773,2]
[405279890,1770938950432,-500.0,0.00024773,2]
[405279891,1770938950457,-500.0,0.00024773,2]
[405279892,1770938950483,-500.0,0.00024773,2]
[405279893,1770938950506,-500.0,0.00024773,2]
[405279894,1770938950530,-500.0,0.00024773,2]
[405279895,1770938950554,-500.0,0.00024773,2]
[405279896,1770938950578,-500.0,0.00024773,2]
[405279897,1770938950602,-500.0,0.00024773,2]
[405279898,1770938950627,-500.0,0.00024773,2]
[405279899,1770938950654,-500.0,0.00024773,2]
[405279900,1770938950679,-500.0,0.00024773,2]
[405279901,1770938950705,-500.0,0.00024773,2]
[405279902,1770938950731,-500.0,0.00024773,2]
[405279903,1770938950756,-500.0,0.00024773,2]
[405279904,1770938950780,-500.0,0.00024773,2]
[405279905,1770938950805,-500.0,0.00024773,2]
[405279906,1770938950832,-500.0,0.00024773,2]
[405279907,1770938950858,-500.0,0.00024773,2]
[405279908,1770938950881,-500.0,0.00024773,2]
[405279909,1770938950908,-500.0,0.00024773,2]
[405279910,1770938950936,-500.0,0.00024773,2]
[405279911,1770938950963,-500.0,0.00024773,2]
[405279912,1770938951138,-500.0,0.00024773,2]
[405279913,1770938951165,-500.0,0.00024773,2]
[405279914,1770938951188,-500.0,0.00024773,2]
[405279915,1770938951211,-500.0,0.00024773,2]
[405279916,1770938951234,-500.0,0.00024773,2]
[405279917,1770938951257,-500.0,0.00024773,2]
[405279918,1770938951281,-416.95382836,0.00024773,2]
[405279919,1770938958090,-83.04617164,0.00024773,2]
[405279920,1770938958113,-500.0,0.00024773,2]
[405279921,1770938958137,-435.73314461,0.00024773,2]
[405279922,1770938958162,-107.36750729,0.00024773,2]
[405279923,1770938958190,-392.63249271,0.00024773,2]
[405279924,1770938958214,-500.0,0.00024773,2]
[405279925,1770938958236,-500.0,0.00024773,2]
[405279926,1770938958257,-500.0,0.00024773,2]
[405279927,1770938958279,-500.0,0.00024773,2]
[405279928,1770938958303,-500.0,0.00024773,2]
[405279929,1770938958325,-500.0,0.00024773,2]
[405279930,1770938958347,-500.0,0.00024773,2]
[405279931,1770938958368,-500.0,0.00024773,2]
[405279932,1770938958389,-500.0,0.00024773,2]
[405279933,1770938958411,-500.0,0.00024773,2]
[405279934,1770938958431,-500.0,0.00024773,2]
[405279935,1770938958453,-500.0,0.00024773,2]
[405279936,1770938958473,-500.0,0.00024773,2]
[405279937,1770938958495,-500.0,0.00024773,2]
[405279938,1770938958516,-500.0,0.00024773,2]
[405279939,1770938958537,-500.0,0.00024773,2]
[405279940,1770938958558,-500.0,0.00024773,2]
[405279941,1770938958579,-500.0,0.00024773,2]
[405279942,1770938958602,-500.0,0.00024773,2]
[405279943,1770938958623,-500.0,0.00024773,2]
[405279944,1770938958646,-500.0,0.00024773,2]
[405279945,1770938958665,-600.34495679,0.00024773,2]
[405279946,1770938958686,-500.0,0.00024773,2]
[405279947,1770938958707,-500.0,0.00024773,2]
[405279948,1770938958730,-572.26249148,0.00024773,2]
[405279949,1770938958752,-857.82578616,0.00024773,2]
[405279950,1770938958772,-500.0,0.00024773,2]
[405279951,1770938958794,-354.9614154,0.00024773,2]
[405279952,1770938960101,-217.30107608,0.00024773,2]
[405279953,1770938960124,-857.82578616,0.00024773,2]
[405279954,1770938960148,-572.26249148,0.00024773,2]
[405279955,1770938960172,-857.82578616,0.00024773,2]
[405279956,1770938960195,-572.26249148,0.00024773,2]
[405279957,1770938960226,-857.82578616,0.00024773,2]
[405279958,1770938960249,-572.26249148,0.00024773,2]
[405279959,1770938960272,-857.82578616,0.00024773,2]
[405279960,1770938960295,-572.26249148,0.00024773,2]
[405279961,1770938960317,-857.82578616,0.00024773,2]
[405279962,1770938960339,-572.26249148,0.00024773,2]
[405279963,1770938960360,-857.82578616,0.00024773,2]
[405279964,1770938960381,-572.26249148,0.00024773,2]
[405279965,1770938960402,-572.26249148,0.00024773,2]
[405279966,1770938960424,-857.82578616,0.00024773,2]
[405279967,1770938960445,-572.26249148,0.00024773,2]
[405279968,1770938960467,-857.82578616,0.00024773,2]
[405279969,1770938960489,-572.26249148,0.00024773,2]
[405279970,1770938960511,-857.82578616,0.00024773,2]
[405279971,1770938960533,-572.26249148,0.00024773,2]
[405279972,1770938960556,-857.82578616,0.00024773,2]
[405279973,1770938960578,-572.26249148,0.00024773,2]
[405279974,1770938960600,-857.82578616,0.00024773,2]
[405279975,1770938960623,-857.82578616,0.00024773,2]
[405279976,1770938960646,-572.26249148,0.00024773,2]
[405279977,1770938960669,-572.26249148,0.00024773,2]
[405279978,1770938960691,-857.82578616,0.00024773,2]
[405279979,1770938960714,-572.26249148,0.00024773,2]
[405279980,1770938960736,-857.82578616,0.00024773,2]
[405279981,1770938960757,-572.26249148,0.00024773,2]
[405279982,1770938960778,-857.82578616,0.00024773,2]
[405279983,1770938960799,-572.26249148,0.00024773,2]
[405279984,1770938960820,-857.82578616,0.00024773,2]
[405279985,1770938960841,-572.26249148,0.00024773,2]
[405279986,1770938960865,-572.26249148,0.00024773,2]
[405279987,1770938960890,-857.82578616,0.00024773,2]
[405279988,1770938960914,-572.26249148,0.00024773,2]
[405279989,1770938960938,-857.82578616,0.00024773,2]
[405279990,1770938960960,-572.26249148,0.00024773,2]
[405279991,1770938960983,-857.82578616,0.00024773,2]
[405279992,1770938961005,-572.26249148,0.00024773,2]
[405279993,1770938961027,-560.33222337,0.00024773,2]
[405279994,1770938964094,-297.49356279,0.00024773,2]
[405279995,1770938964116,-572.26249148,0.00024773,2]
[405279996,1770938964138,-857.82578616,0.00024773,2]
[405279997,1770938964159,-572.26249148,0.00024773,2]
[405279998,1770938964181,-857.82578616,0.00024773,2]
[405279999,1770938964203,-857.82578616,0.00024773,2]
[405280000,1770938964223,-572.26249148,0.00024773,2]
[405280001,1770938964243,-572.26249148,0.00024773,2]
[405280002,1770938964265,-857.82578616,0.00024773,2]
[405280003,1770938964290,-572.26249148,0.00024773,2]
[405280004,1770938964313,-857.82578616,0.00024773,2]
[405280005,1770938964335,-572.26249148,0.00024773,2]
[405280006,1770938964472,-857.82578616,0.00024773,2]
[405280007,1770938964495,-572.26249148,0.00024773,2]
[405280008,1770938964520,-857.82578616,0.00024773,2]
[405280009,1770938964544,-572.26249148,0.00024773,2]
[405280010,1770938964566,-572.26249148,0.00024773,2]
[405280011,1770938964588,-857.82578616,0.00024773,2]
[405280012,1770938964609,-572.26249148,0.00024773,2]
[405280013,1770938964631,-857.82578616,0.00024773,2]
[405280014,1770938964652,-572.26249148,0.00024773,2]
[405280015,1770938964674,-572.26249148,0.00024773,2]
[405280016,1770938964696,-572.26249148,0.00024773,2]
[405280017,1770938964718,-857.82578616,0.00024773,2]
[405280018,1770938964739,-857.82578616,0.00024773,2]
[405280019,1770938964761,-572.26249148,0.00024773,2]
[405280020,1770938964781,-857.82578616,0.00024773,2]
[405280021,1770938964803,-572.26249148,0.00024773,2]
[405280022,1770938964824,-572.26249148,0.00024773,2]
[405280023,1770938964845,-857.82578616,0.00024773,2]
[405280024,1770938964867,-572.26249148,0.00024773,2]
[405280025,1770938964893,-857.82578616,0.00024773,2]
[405280026,1770938964916,-572.26249148,0.00024773,2]
[405280027,1770938964941,-857.82578616,0.00024773,2]
[405280028,1770938964963,-572.26249148,0.00024773,2]
[405280029,1770938964985,-857.82578616,0.00024773,2]
[405280030,1770938965008,-572.26249148,0.00024773,2]
[405280031,1770938965031,-857.82578616,0.00024773,2]
[405280032,1770938965053,-572.26249148,0.00024773,2]
[405280033,1770938965075,-572.26249148,0.00024773,2]
[405280034,1770938965096,-857.82578616,0.00024773,2]
[405280035,1770938965118,-572.26249148,0.00024773,2]
[405280036,1770938965141,-857.82578616,0.00024773,2]
[405280037,1770938965165,-572.26249148,0.00024773,2]
[405280038,1770938965188,-857.82578616,0.00024773,2]
[405280039,1770938965210,-572.26249148,0.00024773,2]
[405280040,1770938965233,-857.82578616,0.00024773,2]
[405280041,1770938965255,-572.26249148,0.00024773,2]
[405280042,1770938965277,-857.82578616,0.00024773,2]
[405280043,1770938965299,-571.30872069,0.00024773,2]
[405280044,1770938965321,-825.86757061,0.00024773,2]
[405280045,1770938965344,-571.30872069,0.00024773,2]
[405280046,1770938965366,-825.86757061,0.00024773,2]
[405280047,1770938965389,-825.86757061,0.00024773,2]
[405280048,1770938965412,-571.30872069,0.00024773,2]
[405280049,1770938965434,-825.86757061,0.00024773,2]
[405280050,1770938965455,-571.30872069,0.00024773,2]
[405280051,1770938965478,-825.86757061,0.00024773,2]
[405280052,1770938965500,-571.30872069,0.00024773,2]
[405280053,1770938965522,-825.86757061,0.00024773,2]
[405280054,1770938965544,-571.30872069,0.00024773,2]
[405280055,1770938965566,-825.86757061,0.00024773,2]
[405280056,1770938965588,-571.30872069,0.00024773,2]
[405280057,1770938965610,-825.86757061,0.00024773,2]
[405280058,1770938965631,-571.30872069,0.00024773,2]
[405280059,1770938965654,-825.86757061,0.00024773,2]
[405280060,1770938965677,-571.30872069,0.00024773,2]
[405280061,1770938965699,-825.86757061,0.00024773,2]
[405280062,1770938965722,-825.86757061,0.00024773,2]
[405280063,1770938965744,-825.86757061,0.00024773,2]
[405280064,1770938965767,-825.86757061,0.00024773,2]
[405280065,1770938965790,-825.86757061,0.00024773,2]
[405280066,1770938965811,-825.86757061,0.00024773,2]
[405280067,1770938965833,-825.86757061,0.00024773,2]
[405280068,1770938965856,-825.86757061,0.00024773,2]
[405280069,1770938965877,-1939.54532646,0.00024774,2]
[405280070,1770938966004,-2425.04567868,0.00024774,2]
[405280071,1770938966027,-496.79,0.0002499,10]
[405280072,1770938966047,-1494.65,0.00025,2]
[405280073,1770938966068,-2686.12111691,0.00025,2]
[405280074,1770938966088,-100000.0,0.00025,2]
[405280075,1770938966108,-10364.0,0.00025,2]
[405280076,1770938966129,-2411.22103113,0.00025,2]
[405280077,1770938966149,-500.0,0.00025,2]
[405280078,1770938966168,-150.0,0.00025,2]
[405280079,1770938966187,-330.98479652,0.00025,14]
[405280080,1770938966206,-1593.10426522,0.00025,2]
[405280081,1770938966226,-2375.73823409,0.00025,2]
[405280082,1770938969127,-830.4,0.00025,14]
[405280083,1770938969147,-250.0,0.00025205,2]
[405280084,1770938969167,-1000.0,0.000255,2]
[405280085,1770938969186,-204.75,0.00025733,2]
[405280086,1770938969205,-350.0,0.00025753,2]
[405280087,1770938969224,-531.99986457,0.00026,2]
[405280088,1770938969245,-19900.0,0.00026,2]
[405280089,1770938969264,-195.43629382,0.0002616,2]
[405280090,1770938969284,-405.65279727,0.00026301,2]
[405280091,1770938969305,-420.0,0.00026713,2]
[405280092,1770938969326,-158.0,0.00027,7]
[405280093,1770938969346,-353.52569424,0.00027409,2]
[405280094,1770938969366,-12376.14253483,0.000275,2]
[405280095,1770938971123,-1743.51617436,0.000275,2]
[405280096,1770938996349,477.5,0.00023511,2]
[405280124,1770939032236,-825.86757061,0.00024773,2]
[405280125,1770939032247,-1145.68492487,0.000249,2]
[405280126,1770939034914,200.0,0.00027,120]
[405280155,1770939038478,-571.30872066,0.00024773,2]
[405280157,1770939038489,-500.0,0.00024773,2]
[405280159,1770939038500,-224.79293624,0.000249,2]
[405280342,1770939040533,-297.02732672,0.000249,2]
[405280424,1770939048712,-2199.19566697,0.000249,2]
[405280425,1770939048721,-499.89956495,0.00025,2]
[405280426,1770939048731,-1200.0,0.00027402,2]
[405280427,1770939048741,-300.0,0.00027403,2]
[405280428,1770939048855,-300.0,0.00027403,2]
[405280429,1770939048865,-300.0,0.00027403,2]
[405280430,1770939048877,-300.0,0.00027403,2]
[405280431,1770939048887,-300.0,0.00027403,2]
[405280432,1770939048896,-3866.70085473,0.00027404,2]
[405280433,1770939048908,-17920.52373031,0.000275,2]
[405280434,1770939048918,-245.23577976,0.0002876,2]
[405280435,1770939048928,-894.38974179,0.00029,2]
[405280436,1770939048938,-420.0,0.00029614,2]
[405280437,1770939048947,-420.0,0.00029614,2]
[405280438,1770939048957,-420.0,0.00029614,2]
[405280439,1770939048966,-420.0,0.00029614,2]
[405280440,1770939048977,-1680.0,0.00029742,2]
[405280441,1770939048987,-3866.70085473,0.00029909,2]
[405280442,1770939048997,-10974.07784906,0.0003,2]
[405280443,1770939049007,-763.32454325,0.0003,2]
[405280444,1770939049017,-160.0,0.0003,2]
[405280445,1770939049026,-2089.0,0.00030137,7]
[405280446,1770939049036,-9765.0,0.00030137,7]
[405280447,1770939049046,-742.60909304,0.00030137,7]
[405280448,1770939049056,-175.61970462,0.00030634,2]
[405280449,1770939049066,-262.02730158,0.00030745,2]
[405280450,1770939049075,-830.4,0.00031,14]
[405280451,1770939049086,-4103.01281356,0.00031,120]
[405280452,1770939049095,-618.30660858,0.00032,2]
[405280453,1770939049105,-587.0,0.00032002,3]
[405280454,1770939049114,-587.0,0.00032002,3]
[405280455,1770939049124,-587.0,0.00032002,2]
[405280456,1770939049133,-587.0,0.00032002,3]
[405280457,1770939049143,-2351.0,0.00032283,3]
[405280458,1770939049153,-200.0,0.000323,120]
[405280459,1770939049162,-3866.70085473,0.00032413,2]
[405280460,1770939049172,-742.60909304,0.00032694,2]
[405280461,1770939049181,-11059.34463127,0.00032799,2]
[405280462,1770939049191,-506.0,0.0003281,2]
[405280463,1770939049201,-420.0,0.00032843,3]
[405280464,1770939049211,-5897.11,0.000329,14]
[405280465,1770939049221,-290.68231795,0.00032919,5]
[405280466,1770939049231,-202.10994946,0.00032919,5]
[405280467,1770939049240,-367.49242516,0.00032946,2]
[405280468,1770939049250,-419.5713517,0.00032946,2]
[405280469,1770939049260,-311.72,0.0003296,10]
[405280470,1770939049270,-259.77,0.0003296,10]
[405280471,1770939049280,-500.0,0.0003297,2]
[405280472,1770939049289,-2000.0,0.0003297,2]
[405280473,1770939049299,-2000.0,0.0003297,2]
[405280474,1770939049309,-2000.0,0.0003297,2]
[405280475,1770939049318,-2000.0,0.0003297,2]
[405280476,1770939049327,-2000.0,0.0003297,2]
[405280477,1770939049336,-2000.0,0.0003297,2]
[405280478,1770939049346,-2000.0,0.0003297,2]
[405280479,1770939049355,-2000.0,0.0003297,2]
[405280480,1770939049365,-2000.0,0.0003297,2]
[405280481,1770939049374,-2000.0,0.0003297,2]
[405280482,1770939049383,-2000.0,0.0003297,2]
[405280483,1770939049393,-2000.0,0.0003297,2]
[405280484,1770939049402,-2000.0,0.0003297,2]
[405280485,1770939049412,-239.58,0.0003298,10]
[405280486,1770939049421,-374.06,0.0003298,10]
[405280487,1770939049431,-100000.0,0.0003299,2]
[405280488,1770939049440,-2148.60305671,0.00032999,2]
[405280489,1770939049449,-9000.0,0.00032999,2]
[405280490,1770939049459,-2253.93758621,0.00032999,2]
[405280491,1770939049469,-230.93,0.00033,7]
[405280492,1770939049479,-5559.88323079,0.00033,120]
[405280493,1770939049489,-417.0,0.00033133,2]
[405280494,1770939049499,-178.60266113,0.000332,117]
[405280495,1770939049509,-178.60266112,0.000332,117]
[405280496,1770939049518,-500.0,0.00033244,2]
[405280497,1770939049529,-403.0,0.0003328,7]
[405280498,1770939049540,-301.61923209,0.00033324,2]
[405280499,1770939049549,-168.0,0.00033386,2]
[405280500,1770939049559,-168.0,0.00033466,2]
[405280501,1770939049568,-1377.0,0.00033492,2]
[405280502,1770939049577,-2248.814,0.00033492,2]
[405280503,1770939049587,-633.0,0.00033492,2]
[405280504,1770939049596,-722.0,0.00033492,2]
[405280505,1770939049605,-438.171,0.00033492,2]
[405280506,1770939049615,-403.0,0.00033533,2]
[405280507,1770939049624,-159.88402675,0.00033672,2]
[405280508,1770939049633,-250.0,0.00033695,2]
[405280509,1770939049642,-250.0,0.00033695,2]
[405280510,1770939049651,-341.16076066,0.00033695,2]
[405280511,1770939049660,-250.0,0.00033695,2]
[405280512,1770939049669,-250.0,0.00033695,2]
[405280513,1770939049679,-250.0,0.00033695,2]
[405280514,1770939049688,-250.0,0.00033695,2]
[405280515,1770939049698,-250.0,0.00033695,2]
[405280516,1770939049708,-250.0,0.00033695,2]
[405280517,1770939049718,-500.0,0.00033695,2]
[405280518,1770939049727,-500.0,0.00033695,2]
[405280519,1770939049736,-500.0,0.00033695,2]
[405280520,1770939049745,-500.0,0.00033695,2]
[405280521,1770939049755,-201.93286099,0.00033695,2]
[405280522,1770939049764,-500.0,0.00033695,2]
[405280523,1770939049774,-209.40437684,0.00033695,2]
[405280524,1770939049783,-500.0,0.00033695,2]
[405280525,1770939049794,-217.15233878,0.00033695,2]
[405280526,1770939049805,-500.0,0.00033695,2]
[405280527,1770939049815,-225.18697532,0.00033695,2]
[405280528,1770939049824,-233.51889341,0.00033695,2]
[405280529,1770939049833,-500.0,0.00033695,2]
[405280530,1770939049843,-242.15909246,0.00033695,2]
[405280531,1770939049852,-251.11897888,0.00033695,2]
[405280532,1770939049862,-500.0,0.00033695,2]
[405280533,1770939049871,-500.0,0.00033695,2]
[405280534,1770939049881,-260.4103811,0.00033695,2]
[405280535,1770939049890,-270.0455652,0.00033695,2]
[405280536,1770939049900,-280.03725112,0.00033695,2]
[405280537,1770939049914,-290.39862941,0.00033695,2]
[405280538,1770939049924,-301.1433787,0.00033695,2]
[405280539,1770939049935,-250.0,0.00033695,2]
[405280540,1770939049944,-500.0,0.00033695,2]
[405280541,1770939049955,-500.0,0.00033695,2]
[405280542,1770939049965,-250.0,0.00033695,2]
[405280543,1770939049975,-266.14051245,0.00033695,2]
[405280544,1770939049987,-250.0,0.00033695,2]
[405280545,1770939049997,-655.0,0.00033704,30]
[405280546,1770939050006,-764.0,0.00033704,30]
[405280547,1770939050017,-474264.22930655,0.00033715,2]
[405280548,1770939050026,-487.0,0.00033715,2]
[405280549,1770939050036,-487.0,0.00033715,2]
[405280550,1770939050046,-487.0,0.00033715,2]
[405280551,1770939050057,-487.0,0.00033715,2]
[405280552,1770939050066,-487.0,0.00033715,2]
[405280553,1770939050076,-487.0,0.00033715,2]
[405280554,1770939050086,-487.0,0.00033715,2]
[405280555,1770939050095,-487.0,0.00033715,2]
[405280556,1770939050106,-487.0,0.00033715,2]
[405280557,1770939050116,-487.0,0.00033715,2]
[405280558,1770939050126,-487.0,0.00033715,2]
[405280559,1770939050135,-487.0,0.00033715,2]
[405280560,1770939050145,-651.65,0.00033715,2]
[405280561,1770939050155,-702.47881848,0.0003377,2]
[405280562,1770939050164,-403.0,0.00033781,2]
[405280563,1770939050174,-2004.52,0.000338,14]
[405280564,1770939050184,-250.0,0.00033889,2]
[405280565,1770939050194,-500.0,0.00033989,2]
[405280566,1770939050203,-500.0,0.00033989,2]
[405280567,1770939050213,-500.0,0.00033989,2]
[405280568,1770939050222,-500.0,0.00033989,2]
[405280569,1770939050232,-500.0,0.00033989,2]
[405280570,1770939050241,-2871.19,0.00033989,120]
[405280571,1770939050252,-500.0,0.00033989,2]
[405280572,1770939050262,-500.0,0.00033989,2]
[405280573,1770939050272,-500.0,0.00033989,2]
[405280574,1770939050282,-500.0,0.00033989,2]
[405280575,1770939050292,-500.0,0.00033989,2]
[405280576,1770939050303,-151.0,0.00034,18]
[405280577,1770939050313,-742.60909304,0.00034,7]
[405280578,1770939050323,-8978.44425789,0.00034,14]
[405280579,1770939050332,-500.0,0.00034045,2]
[405280580,1770939050342,-500.0,0.00034045,2]
[405280581,1770939050352,-265.95747278,0.00034045,2]
[405280582,1770939050361,-46927.81812175,0.00034046,2]
[405280583,1770939050371,-508.52,0.00034055,2]
[405280584,1770939050380,-510.0,0.00034055,2]
[405280585,1770939050389,-500.0,0.00034055,2]
[405280586,1770939050408,-500.0,0.00034055,2]
[405280587,1770939050419,-500.0,0.00034055,2]
[405280588,1770939050429,-500.0,0.00034055,2]
[405280589,1770939050441,-500.0,0.00034055,2]
[405280590,1770939050452,-500.0,0.00034055,2]
[405280591,1770939050462,-500.0,0.00034055,2]
[405280592,1770939050471,-500.0,0.00034055,2]
[405280593,1770939050481,-500.0,0.00034055,2]
[405280594,1770939050491,-500.0,0.00034055,2]
[405280595,1770939050501,-500.0,0.00034055,2]
[405280596,1770939050511,-500.0,0.00034055,2]
[405280597,1770939050520,-500.0,0.00034055,2]
[405280598,1770939050534,-500.0,0.00034055,2]
[405280599,1770939050544,-500.0,0.00034055,2]
[405280600,1770939050555,-464.2560445,0.00034055,2]
[405280601,1770939050565,-12625.14717922,0.00034056,2]
[405280602,1770939050575,-271741.85145453,0.00034056,2]
[405280603,1770939050584,-49581.24577151,0.00034056,2]
[405280604,1770939050594,-60479.28183644,0.00034056,2]
[405280605,1770939050604,-334.0,0.00034078,2]
[405280606,1770939050614,-168.0,0.00034091,2]
[405280607,1770939050624,-151.0,0.000343,19]
[405280608,1770939050634,-789912.98444379,0.000344,7]
[405280609,1770939050644,-151.0,0.000344,31]
[405280610,1770939050653,-154.622662,0.000344,31]
[405280611,1770939050662,-153.655293,0.000344,30]
[405280612,1770939050672,-334.0,0.00034528,2]
[405280613,1770939050681,-337.0,0.00034533,2]
[405280614,1770939050691,-823.0,0.00034584,3]
[405280615,1770939050701,-823.0,0.00034584,2]
[405280616,1770939050710,-823.0,0.00034584,3]
[405280617,1770939050720,-830.4,0.000346,30]
[405280618,1770939050731,-600.0,0.00034669,30]
[405280619,1770939050741,-5897.11,0.000347,14]
[405280620,1770939050751,-230.93,0.000348,7]
[405280621,1770939050761,-386.83881341,0.0003481,5]
[405280622,1770939050770,-168.0,0.00034861,2]
[405280623,1770939050781,-400.0,0.00034874,11]
[405280624,1770939050791,-383949.17850301,0.00034898,2]
[405280625,1770939050801,-2500.0,0.000349,5]
[405280626,1770939050811,-3866.70085473,0.00034917,2]
[405280627,1770939050822,-1547.35525363,0.00034936,5]
[405280628,1770939050833,-401.0,0.00034983,11]
[405280629,1770939050843,-1000.0,0.00035,7]
[405280630,1770939050853,-742.60909304,0.00035,7]
[405280631,1770939050863,-1062.57805076,0.00035,30]
[405280632,1770939050873,-191873.23684647,0.00035,2]
[405280633,1770939050883,-433.41954908,0.00035,40]
[405280634,1770939050893,-160.7408901,0.00035,2]
[405280635,1770939050903,-206.15116135,0.00035,2]
[405280636,1770939050917,-162.95264,0.00035,31]
[405280637,1770939050927,-2092.0,0.0003504,3]
[405280638,1770939050937,-169.298477,0.00035116,2]
[405280639,1770939050947,-71941.18240076,0.0003513,2]
[405280640,1770939050959,-168.0,0.00035369,7]
[405280641,1770939050969,-250.0,0.00035376,2]
[405280642,1770939050979,-250.0,0.00035376,2]
[405280643,1770939050991,-250.0,0.00035376,2]
[405280644,1770939051001,-250.0,0.00035376,2]
[405280645,1770939051011,-250.0,0.00035376,2]
[405280646,1770939051021,-250.0,0.00035376,2]
[405280647,1770939051031,-250.0,0.00035376,2]
[405280648,1770939051042,-350.0,0.00035376,2]
[405280649,1770939051053,-378.0,0.00035376,2]
[405280650,1770939051062,-489.0,0.00035376,2]
[405280651,1770939051072,-269.0,0.00035376,2]
[405280652,1770939051082,-168.0,0.00035444,2]
[405280653,1770939051091,-168.0,0.00035494,2]
[405280654,1770939051101,-168.0,0.00035523,2]
[405280655,1770939051111,-712.0,0.00035608,11]
[405280656,1770939051121,-286.139844,0.00035616,5]
[405280657,1770939051131,-500.0,0.00035616,5]
[405280658,1770939051141,-500.0,0.00035616,5]
[405280659,1770939051151,-150.0,0.00035616,5]
[405280660,1770939051161,-500.0,0.00035616,5]
[405280661,1770939051170,-500.0,0.00035616,5]
[405280662,1770939051180,-500.0,0.00035616,5]
[405280663,1770939051189,-500.0,0.00035616,5]
[405280664,1770939051199,-500.0,0.00035616,5]
[405280665,1770939051209,-500.0,0.00035616,5]
[405280666,1770939051219,-500.0,0.00035616,5]
[405280667,1770939051228,-500.0,0.00035616,5]
[405280668,1770939051238,-500.0,0.00035616,5]
[405280669,1770939051248,-506.77549458,0.00035616,5]
[405280670,1770939051258,-430.08227519,0.00035616,5]
[405280671,1770939051268,-1000.0,0.00035616,2]
[405280672,1770939051277,-254.06459433,0.00035616,5]